Workbook

Sheet NGC2915
B3: ρ(r) = ρ0sech^8( r/ r_c)
A6: M(R) =4πρ0,r_c^3 ·I(u) | C6: u = R/r_c | D6: I(u) = Integrale de 0 à u de ( x^2sech^8(x)dx | H6: V_TURI(R) = Racine (G·M(R)/R)
H8: G= | I8: =4.3009*POWER(10,-6) -> 4.3009e-06 | J8: 10^-6,KPC,(Km/s)^2/Mo
A9: NGC2915 | B9: R_max= | C9: =A44 -> 10.04 | D9: V_obs(R_max)= | E9: =B44 -> 86.5
B10: M_totale= | C10: V_obs^2(R_max).R_max/G= | E10: =E9*E9*C9/I8 -> 1.746652794e+10 | F10: Mo | G10: I(infini)= | H10: 0.0648738184
G11: M(R) = racine(G,M(R)/R)
B12: r_c=R_max= | C12: =C9 -> 10.04 | D12: ρ0= | E12: =(E10/(POWER(C12,3)*4*3.14159*H10)) -> 21170274.36 | F12: Mo/kpc^3 | G12: π= | H12: 3.14159
D13: =M_tot/4.π.r_c^3.I(infini)
A14: R | B14: V_obs | C14: incer V_obs | D14: u=R/r-c | E14: I(U) par table | F14: M(R) | G14: V_TURI | H14: Erreur % | J14: calculs intermediaires de I(u)
A15: 0.34 | B15: 13.5 | C15: 10.1 | D15: =A15/$C$12 -> 0.03386454183 | E15: =N15*K15+O15*M15 -> 1.428170757e-05 | F15: =4*$H$12*$E$12*POWER($C$12,3)*E15 -> 3845185.167 | G15: =POWER($I$8*F15/A15,0.5) -> 6.97427139 | H15: =ROUND(ABS((B15-G15)/B15)*100,2) -> 48.34 | J15: =INDEX(Integrale!$H$3:$H$502,MATCH('NGC2915'!D15,Integrale!$H$3:$H$502,1)) -> 0.03 | K15: =INDEX(Integrale!$I$3:$I$502,MATCH('NGC2915'!D15,Integrale!$H$3:$H$502,1)) -> 9.477e-06 | L15: =INDEX(Integrale!$H$3:$H$502,MATCH('NGC2915'!D15,Integrale!$H$3:$H$502,1)+1) -> 0.04 | M15: =INDEX(Integrale!$I$3:$I$502,MATCH('NGC2915'!D15,Integrale!$H$3:$H$502,1)+1) -> 2.19098e-05 | N15: =(L15-D15)/(L15-J15) -> 0.6135458167 | O15: =(D15-J15)/(L15-J15) -> 0.3864541833
A16: 0.67 | B16: 31.3 | C16: 12.5 | D16: 0.06673306773 | E16: =N16*K16+O16*M16 -> 0.0001004754753 | F16: =4*$H$12*$E$12*POWER($C$12,3)*E16 -> 27051863.75 | G16: 13.17773794 | H16: 57.9 | J16: =INDEX(Integrale!$H$3:$H$502,MATCH('NGC2915'!D16,Integrale!$H$3:$H$502,1)) -> 0.06 | K16: =INDEX(Integrale!$I$3:$I$502,MATCH('NGC2915'!D16,Integrale!$H$3:$H$502,1)) -> 7.2353e-05 | L16: =INDEX(Integrale!$H$3:$H$502,MATCH('NGC2915'!D16,Integrale!$H$3:$H$502,1)+1) -> 0.07 | M16: =INDEX(Integrale!$I$3:$I$502,MATCH('NGC2915'!D16,Integrale!$H$3:$H$502,1)+1) -> 0.0001141207 | N16: =(L16-D16)/(L16-J16) -> 0.3266932271 | O16: 0.6733067729
A17: 1 | B17: 35.3 | C17: 13.4 | D17: 0.09960159363 | E17: 0.0003235171729 | F17: 87103270.28 | G17: 19.35516611 | H17: 45.17 | J17: =INDEX(Integrale!$H$3:$H$502,MATCH('NGC2915'!D17,Integrale!$H$3:$H$502,1)) -> 0.09 | K17: =INDEX(Integrale!$I$3:$I$502,MATCH('NGC2915'!D17,Integrale!$H$3:$H$502,1)) -> 0.0002397401 | L17: =INDEX(Integrale!$H$3:$H$502,MATCH('NGC2915'!D17,Integrale!$H$3:$H$502,1)+1) -> 0.1 | M17: =INDEX(Integrale!$I$3:$I$502,MATCH('NGC2915'!D17,Integrale!$H$3:$H$502,1)+1) -> 0.0003269934 | N17: 0.03984063745 | O17: 0.9601593625
A18: 1.34 | B18: 50.5 | C18: 9.38 | D18: 0.1334661355 | E18: 0.0007640748227 | F18: 205718340.1 | G18: 25.69589678 | H18: 49.12 | J18: =INDEX(Integrale!$H$3:$H$502,MATCH('NGC2915'!D18,Integrale!$H$3:$H$502,1)) -> 0.13 | K18: =INDEX(Integrale!$I$3:$I$502,MATCH('NGC2915'!D18,Integrale!$H$3:$H$502,1)) -> 0.0007052805 | L18: =INDEX(Integrale!$H$3:$H$502,MATCH('NGC2915'!D18,Integrale!$H$3:$H$502,1)+1) -> 0.14 | M18: =INDEX(Integrale!$I$3:$I$502,MATCH('NGC2915'!D18,Integrale!$H$3:$H$502,1)+1) -> 0.0008749055 | N18: 0.6533864542 | O18: 0.3466135458
A19: 1.68 | B19: 61 | C19: 10.1 | D19: 0.1673306773 | E19: 0.001465986956 | F19: 394700092.5 | G19: 31.78766633 | H19: 47.89 | J19: =INDEX(Integrale!$H$3:$H$502,MATCH('NGC2915'!D19,Integrale!$H$3:$H$502,1)) -> 0.16 | K19: =INDEX(Integrale!$I$3:$I$502,MATCH('NGC2915'!D19,Integrale!$H$3:$H$502,1)) -> 0.001286834 | L19: =INDEX(Integrale!$H$3:$H$502,MATCH('NGC2915'!D19,Integrale!$H$3:$H$502,1)+1) -> 0.17 | M19: =INDEX(Integrale!$I$3:$I$502,MATCH('NGC2915'!D19,Integrale!$H$3:$H$502,1)+1) -> 0.001531222 | N19: 0.2669322709 | O19: 0.7330677291
A20: 2.01 | B20: 66.5 | C20: 11.9 | D20: 0.2001992032 | E20: 0.0024352562 | F20: 655664665.7 | G20: 37.45609809 | H20: 43.68 | J20: =INDEX(Integrale!$H$3:$H$502,MATCH('NGC2915'!D20,Integrale!$H$3:$H$502,1)) -> 0.2 | K20: =INDEX(Integrale!$I$3:$I$502,MATCH('NGC2915'!D20,Integrale!$H$3:$H$502,1)) -> 0.0024281708 | L20: =INDEX(Integrale!$H$3:$H$502,MATCH('NGC2915'!D20,Integrale!$H$3:$H$502,1)+1) -> 0.21 | M20: =INDEX(Integrale!$I$3:$I$502,MATCH('NGC2915'!D20,Integrale!$H$3:$H$502,1)+1) -> 0.0027838579 | N20: 0.9800796813 | O20: 0.01992031873
A21: 2.34 | B21: 74.4 | C21: 11.6 | D21: 0.2330677291 | E21: 0.0037189227 | F21: 1001277077 | G21: 42.89916909 | H21: 42.34 | J21: =INDEX(Integrale!$H$3:$H$502,MATCH('NGC2915'!D21,Integrale!$H$3:$H$502,1)) -> 0.23 | K21: =INDEX(Integrale!$I$3:$I$502,MATCH('NGC2915'!D21,Integrale!$H$3:$H$502,1)) -> 0.0035828125 | L21: =INDEX(Integrale!$H$3:$H$502,MATCH('NGC2915'!D21,Integrale!$H$3:$H$502,1)+1) -> 0.24 | M21: =INDEX(Integrale!$I$3:$I$502,MATCH('NGC2915'!D21,Integrale!$H$3:$H$502,1)+1) -> 0.0040264964 | N21: 0.6932270916 | O21: 0.3067729084
A22: 2.67 | B22: 83 | C22: 9.17 | D22: 0.265936255 | E22: 0.005318197228 | F22: 1431863312 | G22: 48.02582372 | H22: 42.14 | J22: =INDEX(Integrale!$H$3:$H$502,MATCH('NGC2915'!D22,Integrale!$H$3:$H$502,1)) -> 0.26 | K22: =INDEX(Integrale!$I$3:$I$502,MATCH('NGC2915'!D22,Integrale!$H$3:$H$502,1)) -> 0.0050024204 | L22: =INDEX(Integrale!$H$3:$H$502,MATCH('NGC2915'!D22,Integrale!$H$3:$H$502,1)+1) -> 0.27 | M22: =INDEX(Integrale!$I$3:$I$502,MATCH('NGC2915'!D22,Integrale!$H$3:$H$502,1)+1) -> 0.0055343666 | N22: 0.406374502 | O22: 0.593625498
A23: 3.01 | B23: 86.4 | C23: 7.66 | D23: 0.2998007968 | E23: 0.007289732058 | F23: 1962676343 | G23: 52.95668224 | H23: 38.71 | J23: =INDEX(Integrale!$H$3:$H$502,MATCH('NGC2915'!D23,Integrale!$H$3:$H$502,1)) -> 0.29 | K23: =INDEX(Integrale!$I$3:$I$502,MATCH('NGC2915'!D23,Integrale!$H$3:$H$502,1)) -> 0.0066846487 | L23: =INDEX(Integrale!$H$3:$H$502,MATCH('NGC2915'!D23,Integrale!$H$3:$H$502,1)+1) -> 0.3 | M23: =INDEX(Integrale!$I$3:$I$502,MATCH('NGC2915'!D23,Integrale!$H$3:$H$502,1)+1) -> 0.0073020305 | N23: 0.01992031873 | O23: 0.9800796813
A24: 3.35 | B24: 83.6 | C24: 8.18 | D24: 0.3336653386 | E24: 0.009580000846 | F24: 2579304819 | G24: 57.54513373 | H24: 31.17 | J24: =INDEX(Integrale!$H$3:$H$502,MATCH('NGC2915'!D24,Integrale!$H$3:$H$502,1)) -> 0.33 | K24: =INDEX(Integrale!$I$3:$I$502,MATCH('NGC2915'!D24,Integrale!$H$3:$H$502,1)) -> 0.0093153237 | L24: =INDEX(Integrale!$H$3:$H$502,MATCH('NGC2915'!D24,Integrale!$H$3:$H$502,1)+1) -> 0.34 | M24: =INDEX(Integrale!$I$3:$I$502,MATCH('NGC2915'!D24,Integrale!$H$3:$H$502,1)+1) -> 0.010037432 | N24: 0.6334661355 | O24: 0.3665338645
A25: 3.68 | B25: 79.8 | C25: 7.93 | D25: 0.3665338645 | E25: 0.01206909716 | F25: 3249465313 | G25: 61.62567877 | H25: 22.77 | J25: =INDEX(Integrale!$H$3:$H$502,MATCH('NGC2915'!D25,Integrale!$H$3:$H$502,1)) -> 0.36 | K25: =INDEX(Integrale!$I$3:$I$502,MATCH('NGC2915'!D25,Integrale!$H$3:$H$502,1)) -> 0.0115524392 | L25: =INDEX(Integrale!$H$3:$H$502,MATCH('NGC2915'!D25,Integrale!$H$3:$H$502,1)+1) -> 0.37 | M25: =INDEX(Integrale!$I$3:$I$502,MATCH('NGC2915'!D25,Integrale!$H$3:$H$502,1)+1) -> 0.0123431779 | N25: 0.3466135458 | O25: 0.6533864542
A26: 4.02 | B26: 82.8 | C26: 6.95 | D26: 0.4003984064 | E26: =N26*K26+O26*M26 -> 0.01486861836 | F26: 4003204134 | G26: 65.44410219 | H26: 20.96 | J26: =INDEX(Integrale!$H$3:$H$502,MATCH('NGC2915'!D26,Integrale!$H$3:$H$502,1)) -> 0.4 | K26: =INDEX(Integrale!$I$3:$I$502,MATCH('NGC2915'!D26,Integrale!$H$3:$H$502,1)) -> 0.0148341297 | L26: =INDEX(Integrale!$H$3:$H$502,MATCH('NGC2915'!D26,Integrale!$H$3:$H$502,1)+1) -> 0.41 | M26: =INDEX(Integrale!$I$3:$I$502,MATCH('NGC2915'!D26,Integrale!$H$3:$H$502,1)+1) -> 0.0156997951 | N26: 0.9601593625 | O26: 0.03984063745
A27: 4.35 | B27: 83.5 | C27: 7.19 | D27: =A27/$C$12 -> 0.4332669323 | E27: =N27*K27+O27*M27 -> 0.01777275706 | F27: =4*$H$12*$E$12*POWER($C$12,3)*E27 -> 4785110008 | G27: =POWER($I$8*F27/A27,0.5) -> 68.78298312 | H27: =ROUND(ABS((B27-G27)/B27)*100,2) -> 17.63 | J27: =INDEX(Integrale!$H$3:$H$502,MATCH('NGC2915'!D27,Integrale!$H$3:$H$502,1)) -> 0.43 | K27: =INDEX(Integrale!$I$3:$I$502,MATCH('NGC2915'!D27,Integrale!$H$3:$H$502,1)) -> 0.0174761447 | L27: =INDEX(Integrale!$H$3:$H$502,MATCH('NGC2915'!D27,Integrale!$H$3:$H$502,1)+1) -> 0.44 | M27: =INDEX(Integrale!$I$3:$I$502,MATCH('NGC2915'!D27,Integrale!$H$3:$H$502,1)+1) -> 0.0183840679 | N27: =(L27-D27)/(L27-J27) -> 0.6733067729 | O27: =(D27-J27)/(L27-J27) -> 0.3266932271
A28: 4.68 | B28: 80.4 | C28: 7.85 | D28: 0.4661354582 | E28: 0.02080764054 | F28: 5602217408 | G28: 71.75244844 | H28: 10.76 | J28: =INDEX(Integrale!$H$3:$H$502,MATCH('NGC2915'!D28,Integrale!$H$3:$H$502,1)) -> 0.46 | K28: =INDEX(Integrale!$I$3:$I$502,MATCH('NGC2915'!D28,Integrale!$H$3:$H$502,1)) -> 0.0202323944 | L28: =INDEX(Integrale!$H$3:$H$502,MATCH('NGC2915'!D28,Integrale!$H$3:$H$502,1)+1) -> 0.47 | M28: =INDEX(Integrale!$I$3:$I$502,MATCH('NGC2915'!D28,Integrale!$H$3:$H$502,1)+1) -> 0.0211699709 | N28: 0.3864541833 | O28: 0.6135458167
A29: 5.02 | B29: 80.3 | C29: 7.57 | D29: 0.5 | E29: 0.0240194669 | F29: 6466964639 | G29: 74.43514814 | H29: 7.3 | J29: =INDEX(Integrale!$H$3:$H$502,MATCH('NGC2915'!D29,Integrale!$H$3:$H$502,1)) -> 0.5 | K29: =INDEX(Integrale!$I$3:$I$502,MATCH('NGC2915'!D29,Integrale!$H$3:$H$502,1)) -> 0.0240194669 | L29: =INDEX(Integrale!$H$3:$H$502,MATCH('NGC2915'!D29,Integrale!$H$3:$H$502,1)+1) -> 0.51 | M29: =INDEX(Integrale!$I$3:$I$502,MATCH('NGC2915'!D29,Integrale!$H$3:$H$502,1)+1) -> 0.0249769344 | N29: 1 | O29: 0
A30: 5.35 | B30: 82.1 | C30: 7.92 | D30: =A30/$C$12 -> 0.5328685259 | E30: =N30*K30+O30*M30 -> 0.02717009402 | F30: =4*$H$12*$E$12*POWER($C$12,3)*E30 -> 7315234680 | G30: =POWER($I$8*F30/A30,0.5) -> 76.68614618 | H30: =ROUND(ABS((B30-G30)/B30)*100,2) -> 6.59 | J30: =INDEX(Integrale!$H$3:$H$502,MATCH('NGC2915'!D30,Integrale!$H$3:$H$502,1)) -> 0.53 | K30: =INDEX(Integrale!$I$3:$I$502,MATCH('NGC2915'!D30,Integrale!$H$3:$H$502,1)) -> 0.0268952255 | L30: =INDEX(Integrale!$H$3:$H$502,MATCH('NGC2915'!D30,Integrale!$H$3:$H$502,1)+1) -> 0.54 | M30: =INDEX(Integrale!$I$3:$I$502,MATCH('NGC2915'!D30,Integrale!$H$3:$H$502,1)+1) -> 0.0278534477 | N30: =(L30-D30)/(L30-J30) -> 0.7131474104 | O30: =(D30-J30)/(L30-J30) -> 0.2868525896
A31: 5.69 | B31: 82.4 | C31: 8.33 | D31: 0.5667330677 | E31: 0.03039993082 | F31: 8184831014 | G31: 78.65537354 | H31: 4.54 | J31: =INDEX(Integrale!$H$3:$H$502,MATCH('NGC2915'!D31,Integrale!$H$3:$H$502,1)) -> 0.56 | K31: =INDEX(Integrale!$I$3:$I$502,MATCH('NGC2915'!D31,Integrale!$H$3:$H$502,1)) -> 0.0297618021 | L31: =INDEX(Integrale!$H$3:$H$502,MATCH('NGC2915'!D31,Integrale!$H$3:$H$502,1)+1) -> 0.57 | M31: =INDEX(Integrale!$I$3:$I$502,MATCH('NGC2915'!D31,Integrale!$H$3:$H$502,1)+1) -> 0.0307095554 | N31: 0.3266932271 | O31: 0.6733067729
A32: 6.03 | B32: 80.9 | C32: 7.88 | D32: 0.6005976096 | E32: 0.03356865575 | F32: 9037973684 | G32: 80.28909314 | H32: 0.76 | J32: =INDEX(Integrale!$H$3:$H$502,MATCH('NGC2915'!D32,Integrale!$H$3:$H$502,1)) -> 0.6 | K32: =INDEX(Integrale!$I$3:$I$502,MATCH('NGC2915'!D32,Integrale!$H$3:$H$502,1)) -> 0.0335137772 | L32: =INDEX(Integrale!$H$3:$H$502,MATCH('NGC2915'!D32,Integrale!$H$3:$H$502,1)+1) -> 0.61 | M32: =INDEX(Integrale!$I$3:$I$502,MATCH('NGC2915'!D32,Integrale!$H$3:$H$502,1)+1) -> 0.0344320783 | N32: 0.9402390438 | O32: 0.05976095618
A33: 6.36 | B33: 79 | C33: 6.15 | D33: 0.6334661355 | E33: 0.03654559659 | F33: 9839480695 | G33: 81.57126618 | H33: 3.25 | J33: =INDEX(Integrale!$H$3:$H$502,MATCH('NGC2915'!D33,Integrale!$H$3:$H$502,1)) -> 0.63 | K33: =INDEX(Integrale!$I$3:$I$502,MATCH('NGC2915'!D33,Integrale!$H$3:$H$502,1)) -> 0.0362383877 | L33: =INDEX(Integrale!$H$3:$H$502,MATCH('NGC2915'!D33,Integrale!$H$3:$H$502,1)+1) -> 0.64 | M33: =INDEX(Integrale!$I$3:$I$502,MATCH('NGC2915'!D33,Integrale!$H$3:$H$502,1)+1) -> 0.037124703 | N33: 0.6533864542 | O33: 0.3466135458
A34: 6.69 | B34: 81.4 | C34: 6.11 | D34: 0.6663346614 | E34: 0.03939665322 | F34: 1.060709483e+10 | G34: 82.57809111 | H34: 1.45 | J34: =INDEX(Integrale!$H$3:$H$502,MATCH('NGC2915'!D34,Integrale!$H$3:$H$502,1)) -> 0.66 | K34: =INDEX(Integrale!$I$3:$I$502,MATCH('NGC2915'!D34,Integrale!$H$3:$H$502,1)) -> 0.0388598276 | L34: =INDEX(Integrale!$H$3:$H$502,MATCH('NGC2915'!D34,Integrale!$H$3:$H$502,1)+1) -> 0.67 | M34: =INDEX(Integrale!$I$3:$I$502,MATCH('NGC2915'!D34,Integrale!$H$3:$H$502,1)+1) -> 0.0397072693 | N34: 0.3665338645 | O34: 0.6334661355
A35: 7.02 | B35: 79.7 | C35: 5.59 | D35: 0.6992031873 | E35: 0.04209804738 | F35: 1.133441408e+10 | G35: 83.33177905 | H35: 4.56 | J35: =INDEX(Integrale!$H$3:$H$502,MATCH('NGC2915'!D35,Integrale!$H$3:$H$502,1)) -> 0.69 | K35: =INDEX(Integrale!$I$3:$I$502,MATCH('NGC2915'!D35,Integrale!$H$3:$H$502,1)) -> 0.0413588991 | L35: =INDEX(Integrale!$H$3:$H$502,MATCH('NGC2915'!D35,Integrale!$H$3:$H$502,1)+1) -> 0.7 | M35: =INDEX(Integrale!$I$3:$I$502,MATCH('NGC2915'!D35,Integrale!$H$3:$H$502,1)+1) -> 0.0421620429 | N35: 0.0796812749 | O35: 0.9203187251
A36: 7.36 | B36: 77.5 | C36: 6.33 | D36: 0.7330677291 | E36: 0.04470204875 | F36: 1.203551144e+10 | G36: 83.86351095 | H36: 8.21 | J36: =INDEX(Integrale!$H$3:$H$502,MATCH('NGC2915'!D36,Integrale!$H$3:$H$502,1)) -> 0.73 | K36: =INDEX(Integrale!$I$3:$I$502,MATCH('NGC2915'!D36,Integrale!$H$3:$H$502,1)) -> 0.04447562 | L36: =INDEX(Integrale!$H$3:$H$502,MATCH('NGC2915'!D36,Integrale!$H$3:$H$502,1)+1) -> 0.74 | M36: =INDEX(Integrale!$I$3:$I$502,MATCH('NGC2915'!D36,Integrale!$H$3:$H$502,1)+1) -> 0.0452137189 | N36: 0.6932270916 | O36: 0.3067729084
A37: 7.7 | B37: 79.9 | C37: 6.41 | D37: 0.7669322709 | E37: 0.04711466185 | F37: 1.268507971e+10 | G37: 84.17457071 | H37: 5.35 | J37: =INDEX(Integrale!$H$3:$H$502,MATCH('NGC2915'!D37,Integrale!$H$3:$H$502,1)) -> 0.76 | K37: =INDEX(Integrale!$I$3:$I$502,MATCH('NGC2915'!D37,Integrale!$H$3:$H$502,1)) -> 0.0466387261 | L37: =INDEX(Integrale!$H$3:$H$502,MATCH('NGC2915'!D37,Integrale!$H$3:$H$502,1)+1) -> 0.77 | M37: =INDEX(Integrale!$I$3:$I$502,MATCH('NGC2915'!D37,Integrale!$H$3:$H$502,1)+1) -> 0.0473252771 | N37: 0.3067729084 | O37: 0.6932270916
A38: 8.03 | B38: 81.5 | C38: 7.86 | D38: 0.7998007968 | E38: 0.04926723545 | F38: 1.326463534e+10 | G38: 84.28873916 | H38: 3.42 | J38: =INDEX(Integrale!$H$3:$H$502,MATCH('NGC2915'!D38,Integrale!$H$3:$H$502,1)) -> 0.79 | K38: =INDEX(Integrale!$I$3:$I$502,MATCH('NGC2915'!D38,Integrale!$H$3:$H$502,1)) -> 0.0486459007 | L38: =INDEX(Integrale!$H$3:$H$502,MATCH('NGC2915'!D38,Integrale!$H$3:$H$502,1)+1) -> 0.8 | M38: =INDEX(Integrale!$I$3:$I$502,MATCH('NGC2915'!D38,Integrale!$H$3:$H$502,1)+1) -> 0.0492798642 | N38: 0.01992031873 | O38: 0.9800796813
A39: 8.37 | B39: 82.2 | C39: 7.82 | D39: 0.8336653386 | E39: 0.05128320472 | F39: 1.380741183e+10 | G39: 84.23121841 | H39: 2.47 | J39: =INDEX(Integrale!$H$3:$H$502,MATCH('NGC2915'!D39,Integrale!$H$3:$H$502,1)) -> 0.83 | K39: =INDEX(Integrale!$I$3:$I$502,MATCH('NGC2915'!D39,Integrale!$H$3:$H$502,1)) -> 0.0510764772 | L39: =INDEX(Integrale!$H$3:$H$502,MATCH('NGC2915'!D39,Integrale!$H$3:$H$502,1)+1) -> 0.84 | M39: =INDEX(Integrale!$I$3:$I$502,MATCH('NGC2915'!D39,Integrale!$H$3:$H$502,1)+1) -> 0.0516404838 | N39: 0.6334661355 | O39: 0.3665338645
A40: 8.7 | B40: 82 | C40: 7.09 | D40: 0.8665338645 | E40: 0.05305196537 | F40: 1.428363025e+10 | G40: 84.03096403 | H40: 2.48 | J40: =INDEX(Integrale!$H$3:$H$502,MATCH('NGC2915'!D40,Integrale!$H$3:$H$502,1)) -> 0.86 | K40: =INDEX(Integrale!$I$3:$I$502,MATCH('NGC2915'!D40,Integrale!$H$3:$H$502,1)) -> 0.0527169267 | L40: =INDEX(Integrale!$H$3:$H$502,MATCH('NGC2915'!D40,Integrale!$H$3:$H$502,1)+1) -> 0.87 | M40: =INDEX(Integrale!$I$3:$I$502,MATCH('NGC2915'!D40,Integrale!$H$3:$H$502,1)+1) -> 0.0532296993 | N40: 0.3466135458 | O40: 0.6533864542
A41: 9.03 | B41: 84.7 | C41: 5.74 | D41: 0.8994023904 | E41: 0.05464103477 | F41: 1.471146888e+10 | G41: 83.70739291 | H41: 1.17 | J41: =INDEX(Integrale!$H$3:$H$502,MATCH('NGC2915'!D41,Integrale!$H$3:$H$502,1)) -> 0.89 | K41: =INDEX(Integrale!$I$3:$I$502,MATCH('NGC2915'!D41,Integrale!$H$3:$H$502,1)) -> 0.0542053641 | L41: =INDEX(Integrale!$H$3:$H$502,MATCH('NGC2915'!D41,Integrale!$H$3:$H$502,1)+1) -> 0.9 | M41: =INDEX(Integrale!$I$3:$I$502,MATCH('NGC2915'!D41,Integrale!$H$3:$H$502,1)+1) -> 0.0546687257 | N41: 0.05976095618 | O41: 0.9402390438
A42: 9.37 | B42: 86.1 | C42: 5.54 | D42: 0.9332669323 | E42: 0.0560951849 | F42: 1.510298204e+10 | G42: 83.26092472 | H42: 3.3 | J42: =INDEX(Integrale!$H$3:$H$502,MATCH('NGC2915'!D42,Integrale!$H$3:$H$502,1)) -> 0.93 | K42: =INDEX(Integrale!$I$3:$I$502,MATCH('NGC2915'!D42,Integrale!$H$3:$H$502,1)) -> 0.0559641145 | L42: =INDEX(Integrale!$H$3:$H$502,MATCH('NGC2915'!D42,Integrale!$H$3:$H$502,1)+1) -> 0.94 | M42: =INDEX(Integrale!$I$3:$I$502,MATCH('NGC2915'!D42,Integrale!$H$3:$H$502,1)+1) -> 0.0563653178 | N42: 0.6733067729 | O42: 0.3266932271
A43: 9.7 | B43: 85.3 | C43: 5.23 | D43: 0.9661354582 | E43: 0.05734326735 | F43: 1.543901386e+10 | G43: 82.73772665 | H43: 3 | J43: =INDEX(Integrale!$H$3:$H$502,MATCH('NGC2915'!D43,Integrale!$H$3:$H$502,1)) -> 0.96 | K43: =INDEX(Integrale!$I$3:$I$502,MATCH('NGC2915'!D43,Integrale!$H$3:$H$502,1)) -> 0.0571237109 | L43: =INDEX(Integrale!$H$3:$H$502,MATCH('NGC2915'!D43,Integrale!$H$3:$H$502,1)+1) -> 0.97 | M43: =INDEX(Integrale!$I$3:$I$502,MATCH('NGC2915'!D43,Integrale!$H$3:$H$502,1)+1) -> 0.0574815594 | N43: 0.3864541833 | O43: 0.6135458167
A44: 10.04 | B44: 86.5 | C44: 6.45 | D44: 1 | E44: 0.0584738086 | F44: 1.574339906e+10 | G44: 82.12248226 | H44: 5.06 | J44: =INDEX(Integrale!$H$3:$H$502,MATCH('NGC2915'!D44,Integrale!$H$3:$H$502,1)) -> 1 | K44: =INDEX(Integrale!$I$3:$I$502,MATCH('NGC2915'!D44,Integrale!$H$3:$H$502,1)) -> 0.0584738086 | L44: =INDEX(Integrale!$H$3:$H$502,MATCH('NGC2915'!D44,Integrale!$H$3:$H$502,1)+1) -> 1.01 | M44: =INDEX(Integrale!$I$3:$I$502,MATCH('NGC2915'!D44,Integrale!$H$3:$H$502,1)+1) -> 0.0587786248 | N44: 1 | O44: 0
G45: Erreur moy | H45: =ROUND(AVERAGE(H15:H44),2) -> 19.38
B46: Précision= | C46: =ROUND(MAX(0,100-H45),2) -> 80.62 | D46: %
A48: R | B48: V_Obs | C48: Incer V_Obs | D48: V_TURI | E48: A=(V_obs-V_TURI)^2 | F48: A/Incer V_Obs^2
A49: =A15 -> 0.34 | B49: 13.5 | C49: 10.1 | D49: =ROUND(G15,2) -> 6.97 | E49: =ROUND(POWER((B49-D49),2),2) -> 42.64 | F49: =ROUND(E49/POWER(C49,2),2) -> 0.42
A50: 0.67 | B50: 31.3 | C50: 12.5 | D50: 13.18 | E50: =ROUND(POWER((B50-D50),2),2) -> 328.33 | F50: =ROUND(E50/POWER(C50,2),2) -> 2.1
A51: 1 | B51: 35.3 | C51: 13.4 | D51: 19.36 | E51: 254.08 | F51: 1.42
A52: 1.34 | B52: 50.5 | C52: 9.38 | D52: 25.7 | E52: 615.04 | F52: 6.99
A53: 1.68 | B53: 61 | C53: 10.1 | D53: 31.79 | E53: 853.22 | F53: 8.36
A54: 2.01 | B54: 66.5 | C54: 11.9 | D54: 37.46 | E54: 843.32 | F54: 5.96
A55: 2.34 | B55: 74.4 | C55: 11.6 | D55: 42.9 | E55: 992.25 | F55: 7.37
A56: 2.67 | B56: 83 | C56: 9.17 | D56: 48.03 | E56: 1222.9 | F56: 14.54
A57: 3.01 | B57: 86.4 | C57: 7.66 | D57: 52.96 | E57: 1118.23 | F57: 19.06
A58: 3.35 | B58: 83.6 | C58: 8.18 | D58: 57.55 | E58: 678.6 | F58: 10.14
A59: 3.68 | B59: 79.8 | C59: 7.93 | D59: 61.63 | E59: 330.15 | F59: 5.25
A60: 4.02 | B60: 82.8 | C60: 6.95 | D60: 65.44 | E60: 301.37 | F60: 6.24
A61: =A27 -> 4.35 | B61: =B27 -> 83.5 | C61: =C27 -> 7.19 | D61: 68.78 | E61: =ROUND(POWER((B61-D61),2),2) -> 216.68 | F61: =ROUND(E61/POWER(C61,2),2) -> 4.19
A62: =A28 -> 4.68 | B62: 80.4 | C62: 7.85 | D62: 71.75 | E62: 74.82 | F62: 1.21
A63: =A29 -> 5.02 | B63: 80.3 | C63: 7.57 | D63: 74.44 | E63: 34.34 | F63: 0.6
A64: =A30 -> 5.35 | B64: 82.1 | C64: 7.92 | D64: =ROUND(G30,2) -> 76.69 | E64: =ROUND(POWER((B64-D64),2),2) -> 29.27 | F64: =ROUND(E64/POWER(C64,2),2) -> 0.47
A65: =A31 -> 5.69 | B65: 82.4 | C65: 8.33 | D65: 78.66 | E65: 13.99 | F65: 0.2
A66: =A32 -> 6.03 | B66: 80.9 | C66: 7.88 | D66: 80.29 | E66: 0.37 | F66: 0.01
A67: =A33 -> 6.36 | B67: 79 | C67: 6.15 | D67: 81.57 | E67: 6.6 | F67: 0.17
A68: =A34 -> 6.69 | B68: 81.4 | C68: 6.11 | D68: 82.58 | E68: 1.39 | F68: 0.04
A69: =A35 -> 7.02 | B69: 79.7 | C69: 5.59 | D69: 83.33 | E69: 13.18 | F69: 0.42
A70: =A36 -> 7.36 | B70: 77.5 | C70: 6.33 | D70: 83.86 | E70: 40.45 | F70: 1.01
A71: =A37 -> 7.7 | B71: 79.9 | C71: 6.41 | D71: 84.17 | E71: 18.23 | F71: 0.44
A72: =A38 -> 8.03 | B72: 81.5 | C72: 7.86 | D72: 84.29 | E72: 7.78 | F72: 0.13
A73: =A39 -> 8.37 | B73: 82.2 | C73: 7.82 | D73: 84.23 | E73: 4.12 | F73: 0.07
A74: =A40 -> 8.7 | B74: 82 | C74: 7.09 | D74: 84.03 | E74: 4.12 | F74: 0.08
A75: =A41 -> 9.03 | B75: 84.7 | C75: 5.74 | D75: 83.71 | E75: 0.98 | F75: 0.03
A76: =A42 -> 9.37 | B76: 86.1 | C76: 5.54 | D76: 83.26 | E76: 8.07 | F76: 0.26
A77: =A43 -> 9.7 | B77: 85.3 | C77: 5.23 | D77: 82.74 | E77: 6.55 | F77: 0.24
A78: =A44 -> 10.04 | B78: 86.5 | C78: 6.45 | D78: 82.12 | E78: 19.18 | F78: 0.46
E79: ᵡ2/df | F79: =ROUND(SUM(F49:F78)/(COUNT(F49:F78)),2) -> 3.26

Sheet Integrale
H1: u | I1: I(u) = Integrale de 0 à u de ( x^2sech^8(x)dx
H2: 0 | I2: 0
H3: 0.01 | I3: 4.998e-07
H4: 0.02 | I4: 2.9964e-06
H5: 0.03 | I5: 9.477e-06
H6: 0.04 | I6: 2.19098e-05
H7: 0.05 | I7: 4.22345e-05
H8: 0.06 | I8: 7.2353e-05
H9: 0.07 | I9: 0.0001141207
H10: 0.08 | I10: 0.0001693376
H11: 0.09 | I11: 0.0002397401
H12: 0.1 | I12: 0.0003269934
H13: 0.11 | I13: 0.0004326832
H14: 0.12 | I14: 0.0005583096
H15: 0.13 | I15: 0.0007052805
H16: 0.14 | I16: 0.0008749055
H17: 0.15 | I17: 0.0010683906
H18: 0.16 | I18: 0.001286834
H19: 0.17 | I19: 0.001531222
H20: 0.18 | I20: 0.0018024255
H21: 0.19 | I21: 0.0021011974
H22: 0.2 | I22: 0.0024281708
H23: 0.21 | I23: 0.0027838579
H24: 0.22 | I24: 0.0031686489
H25: 0.23 | I25: 0.0035828125
H26: 0.24 | I26: 0.0040264964
H27: 0.25 | I27: 0.0044997288
H28: 0.26 | I28: 0.0050024204
H29: 0.27 | I29: 0.0055343666
H30: 0.28 | I30: 0.006095251
H31: 0.29 | I31: 0.0066846487
H32: 0.3 | I32: 0.0073020305
H33: 0.31 | I33: 0.0079467677
H34: 0.32 | I34: 0.0086181365
H35: 0.33 | I35: 0.0093153237
H36: 0.34 | I36: 0.010037432
H37: 0.35 | I37: 0.0107834863
H38: 0.36 | I38: 0.0115524392
H39: 0.37 | I39: 0.0123431779
H40: 0.38 | I40: 0.0131545302
H41: 0.39 | I41: 0.0139852712
H42: 0.4 | I42: 0.0148341297
H43: 0.41 | I43: 0.0156997951
H44: 0.42 | I44: 0.0165809236
H45: 0.43 | I45: 0.0174761447
H46: 0.44 | I46: 0.0183840679
H47: 0.45 | I47: 0.0193032886
H48: 0.46 | I48: 0.0202323944
H49: 0.47 | I49: 0.0211699709
H50: 0.48 | I50: 0.0221146072
H51: 0.49 | I51: 0.0230649017
H52: 0.5 | I52: 0.0240194669
H53: 0.51 | I53: 0.0249769344
H54: 0.52 | I54: 0.0259359595
H55: 0.53 | I55: 0.0268952255
H56: 0.54 | I56: 0.0278534477
H57: 0.55 | I57: 0.0288093767
H58: 0.56 | I58: 0.0297618021
H59: 0.57 | I59: 0.0307095554
H60: 0.58 | I60: 0.0316515125
H61: 0.59 | I61: 0.0325865959
H62: 0.6 | I62: 0.0335137772
H63: 0.61 | I63: 0.0344320783
H64: 0.62 | I64: 0.0353405729
H65: 0.63 | I65: 0.0362383877
H66: 0.64 | I66: 0.037124703
H67: 0.65 | I67: 0.0379987533
H68: 0.66 | I68: 0.0388598276
H69: 0.67 | I69: 0.0397072693
H70: 0.68 | I70: 0.040540476
H71: 0.69 | I71: 0.0413588991
H72: 0.7 | I72: 0.0421620429
H73: 0.71 | I73: 0.0429494641
H74: 0.72 | I74: 0.0437207705
H75: 0.73 | I75: 0.04447562
H76: 0.74 | I76: 0.0452137189
H77: 0.75 | I77: 0.0459348212
H78: 0.76 | I78: 0.0466387261
H79: 0.77 | I79: 0.0473252771
H80: 0.78 | I80: 0.0479943599
H81: 0.79 | I81: 0.0486459007
H82: 0.8 | I82: 0.0492798642
H83: 0.81 | I83: 0.0498962518
H84: 0.82 | I84: 0.0504950998
H85: 0.83 | I85: 0.0510764772
H86: 0.84 | I86: 0.0516404838
H87: 0.85 | I87: 0.0521872484
H88: 0.86 | I88: 0.0527169267
H89: 0.87 | I89: 0.0532296993
H90: 0.88 | I90: 0.0537257701
H91: 0.89 | I91: 0.0542053641
H92: 0.9 | I92: 0.0546687257
H93: 0.91 | I93: 0.0551161169
H94: 0.92 | I94: 0.0555478158
H95: 0.93 | I95: 0.0559641145
H96: 0.94 | I96: 0.0563653178
H97: 0.95 | I97: 0.0567517415
H98: 0.96 | I98: 0.0571237109
H99: 0.97 | I99: 0.0574815594
H100: 0.98 | I100: 0.0578256274
H101: 0.99 | I101: 0.0581562605
H102: 1 | I102: 0.0584738086
H103: 1.01 | I103: 0.0587786248
H104: 1.02 | I104: 0.059071064
H105: 1.03 | I105: 0.0593514822
H106: 1.04 | I106: 0.0596202355
H107: 1.05 | I107: 0.0598776791
H108: 1.06 | I108: 0.0601241663
H109: 1.07 | I109: 0.0603600483
H110: 1.08 | I110: 0.060585673
H111: 1.09 | I111: 0.0608013846
H112: 1.1 | I112: 0.0610075229
H113: 1.11 | I113: 0.0612044228
H114: 1.12 | I114: 0.0613924139
H115: 1.13 | I115: 0.0615718202
H116: 1.14 | I116: 0.0617429593
H117: 1.15 | I117: 0.0619061425
H118: 1.16 | I118: 0.0620616744
H119: 1.17 | I119: 0.0622098525
H120: 1.18 | I120: 0.0623509673
H121: 1.19 | I121: 0.0624853017
H122: 1.2 | I122: 0.0626131314
H123: 1.21 | I123: 0.0627347243
H124: 1.22 | I124: 0.0628503409
H125: 1.23 | I125: 0.0629602337
H126: 1.24 | I126: 0.0630646479
H127: 1.25 | I127: 0.0631638207
H128: 1.26 | I128: 0.0632579818
H129: 1.27 | I129: 0.0633473531
H130: 1.28 | I130: 0.0634321492
H131: 1.29 | I131: 0.0635125771
H132: 1.3 | I132: 0.0635888365
H133: 1.31 | I133: 0.0636611197
H134: 1.32 | I134: 0.0637296121
H135: 1.33 | I135: 0.0637944919
H136: 1.34 | I136: 0.0638559305
H137: 1.35 | I137: 0.0639140927
H138: 1.36 | I138: 0.0639691366
H139: 1.37 | I139: 0.064021214
H140: 1.38 | I140: 0.0640704704
H141: 1.39 | I141: 0.0641170452
H142: 1.4 | I142: 0.064161072
H143: 1.41 | I143: 0.0642026787
H144: 1.42 | I144: 0.0642419876
H145: 1.43 | I145: 0.0642791157
H146: 1.44 | I146: 0.0643141746
H147: 1.45 | I147: 0.064347271
H148: 1.46 | I148: 0.064378507
H149: 1.47 | I149: 0.0644079795
H150: 1.48 | I150: 0.0644357814
H151: 1.49 | I151: 0.0644620009
H152: 1.5 | I152: 0.0644867222
H153: 1.51 | I153: 0.0645100253
H154: 1.52 | I154: 0.0645319867
H155: 1.53 | I155: 0.0645526787
H156: 1.54 | I156: 0.0645721705
H157: 1.55 | I157: 0.0645905275
H158: 1.56 | I158: 0.0646078121
H159: 1.57 | I159: 0.0646240835
H160: 1.58 | I160: 0.0646393978
H161: 1.59 | I161: 0.0646538084
H162: 1.6 | I162: 0.0646673658
H163: 1.61 | I163: 0.064680118
H164: 1.62 | I164: 0.0646921104
H165: 1.63 | I165: 0.0647033862
H166: 1.64 | I166: 0.0647139861
H167: 1.65 | I167: 0.0647239487
H168: 1.66 | I168: 0.0647333107
H169: 1.67 | I169: 0.0647421067
H170: 1.68 | I170: 0.0647503694
H171: 1.69 | I171: 0.0647581297
H172: 1.7 | I172: 0.064765417
H173: 1.71 | I173: 0.064772259
H174: 1.72 | I174: 0.0647786817
H175: 1.73 | I175: 0.0647847098
H176: 1.74 | I176: 0.0647903667
H177: 1.75 | I177: 0.0647956744
H178: 1.76 | I178: 0.0648006536
H179: 1.77 | I179: 0.064805324
H180: 1.78 | I180: 0.0648097041
H181: 1.79 | I181: 0.0648138112
H182: 1.8 | I182: 0.0648176618
H183: 1.81 | I183: 0.0648212714
H184: 1.82 | I184: 0.0648246547
H185: 1.83 | I185: 0.0648278252
H186: 1.84 | I186: 0.0648307961
H187: 1.85 | I187: 0.0648335795
H188: 1.86 | I188: 0.0648361869
H189: 1.87 | I189: 0.0648386291
H190: 1.88 | I190: 0.0648409162
H191: 1.89 | I191: 0.0648430578
H192: 1.9 | I192: 0.064845063
H193: 1.91 | I193: 0.0648469402
H194: 1.92 | I194: 0.0648486973
H195: 1.93 | I195: 0.0648503418
H196: 1.94 | I196: 0.0648518808
H197: 1.95 | I197: 0.0648533208
H198: 1.96 | I198: 0.0648546681
H199: 1.97 | I199: 0.0648559285
H200: 1.98 | I200: 0.0648571074
... 172 more rows

Sheet Feuil3
